Cogmind - Beta 14 @@@ ROGUE MODE // 2024.08.23 @ 10:18:12 Player: APerTAS Result: Core destroyed Performance ------------- Evolutions (0) 0 Regions Visited (1) 200 Robots Destroyed (11) 55 Value Destroyed (363) 363 Prototype IDs (2) 40 Alien Tech Used (0) 0 Bonus (0) 0 TOTAL SCORE: 658 Bonus ------- None Cogmind --------- Core Integrity 0/250 Matter 274/300 Energy 100/100 System Corruption 26% Temperature Cool (0) Movement Core (50) Location -10/Materials Parts ------- > --- POWER (1) -------- (None) > --- PROPULSION (2) --- (None) > --- UTILITY (2) ------ (None) > --- WEAPON (2) ------- (None) > --- INVENTORY (5) ---- Light Ion Engine Aluminum Leg Heat Sink Improved Heat Sink Beam Cannon Peak State ------------ > --- POWER ------------ Ion Engine > --- PROPULSION ------- Light Treads Light Treads > --- UTILITY ---------- Small Storage Unit Signal Interpreter > --- WEAPON ----------- Light Assault Rifle Light Assault Rifle > --- INVENTORY -------- Light Ion Engine Light Nuclear Core Light Treads Aluminum Leg Heat Sink Improved Heat Sink Core Shielding Beam Cannon [Rating: 8] Favorites ----------- Power Ion Engine Engine Ion Engine Propulsion Light Treads Treads Light Treads Utility Small Storage Unit Storage Small Storage Unit Processor Signal Interpreter Weapon Light Assault Rifle Energy Gun Medium Laser Energy Cannon Beam Cannon Ballistic Gun Light Assault Rifle Build | -11 -10 ------- Run | Yrd Mat Slots Evolved . | . . Power . | . . Propulsion . | . . Utility . | . . Weapon . | . . Parts Attached 13 | 6 7 Power 2 | 1 1 Engine 2 | 1 1 Core . | . . Reactor . | . . Propulsion 2 | 2 . Treads 2 | 2 . Leg . | . . Wheel . | . . Hover . | . . Flight . | . . Utility 2 | 1 1 Device . | . . Storage 1 | 1 . Processor 1 | . 1 Hackware . | . . Protection . | . . Artifact . | . . Weapon 7 | 2 5 Energy Gun 1 | 1 . Energy Cannon 1 | . 1 Ballistic Gun 5 | 1 4 Ballistic Cannon . | . . Launcher . | . . Special Weapon . | . . Impact Weapon . | . . Slashing Weapon . | . . Piercing Weapon . | . . Special Melee Weapon . | . . Unidentified Prototypes . | . . Parts Lost 2 | . 2 Power . | . . Propulsion . | . . Utility . | . . Weapon 2 | . 2 Highest Loss Streak 1 | . 1 To Critical Strikes . | . . Average Slot Usage (%) 93 | . 93 Engine 13 | . 13 Treads 27 | . 27 Storage 13 | . 13 Processor 10 | . 10 Ballistic Gun 26 | . 26 Peak Build Rating 8 | 6 8 Average Rating 6 | 4 6 On Entrance 3 | . 6 Naked Turns 26 | . 26 Heaviest Build 14 | 14 14 Greatest Support 40 | 40 40 Greatest Overweight (x) 1 | 1 . Average Overweight (x) . | . . Largest Inventory Capacity 8 | 8 8 Average Capacity 7 | 7 7 Most Carried 8 | 4 8 Average Carried 7 | 2 7 Final Capacity 8 | 8 5 Final Carried 5 | 4 5 Class Distribution -------------------- 100% | Mutant Dominant Class ---------------- Mutant | -10/Materials Resources | -11 -10 ----------- Run | Yrd Mat Matter Collected 484 | 205 279 Remotely . | . . Salvage Created 473 | . 473 Parts 24 | . 24 Haulers Intercepted 1 | . 1 Recyclers Shooed . | . . Parts Field Recycled . | . . Retrieved Matter . | . . Parts Self-Destructed . | . . Prevented . | . . Kills | -11 -10 ------- Run | Yrd Mat Combat Hostiles Destroyed 9 | . 9 Guns 9 | . 9 Classes Destroyed 3 | . 3 Hauler 1 | . 1 Watcher 1 | . 1 Grunt 9 | . 9 Best Kill Streak 3 | . 3 Combat Bots Only 3 | . 3 Max Kills in Single Turn 1 | . 1 Gunslinging . | . . Exploded . | . . Melee . | . . Uniques/NPCs Destroyed . | . . Combat | -11 -10 -------- Run | Yrd Mat Hostile Shots Fired 64 | . 64 Missed 18 | . 18 Damage Taken 788 | . 788 Core 255 | . 255 Absorbed by Shields . | . . Core Remaining (%) 100 | 100 . Volleys Fired 72 | . 72 Largest 2 | . 2 Hottest 80 | . 80 Shots Fired 131 | . 131 Gun 128 | . 128 Cannon 3 | . 3 Launcher . | . . Special . | . . Kinetic 128 | . 128 Thermal 3 | . 3 Explosive . | . . Electromagnetic . | . . Robot Hit Streak 11 | . 11 Robot Miss Streak 6 | . 6 Penetration Max . | . . Secondary Targets 1 | . 1 Max Gunslinging Chain 1 | . 1 Shots Hit Robots 80 | . 80 Core Hits 26 | . 26 Critical Kills 1 | . 1 Critical Parts Destroyed . | . . Critical Strikes 1 | . 1 Destroy 1 | . 1 Melee Attacks . | . . Impact . | . . Slashing . | . . Piercing . | . . Sneak Attacks . | . . Combat Hostiles . | . . Follow-up Attacks . | . . Damage Inflicted 902 | . 902 Guns 728 | . 728 Cannons 18 | . 18 Explosions . | . . Melee . | . . Ramming 156 | . 156 Kinetic 728 | . 728 Thermal 18 | . 18 Explosive . | . . Electromagnetic . | . . Impact . | . . Slashing . | . . Piercing . | . . Highest Corruption 24 | . 24 Average Corruption 1 | . 1 Corruption Purged . | . . Corruption Blocked . | . . Effects 6 | . 6 Message Errors 1 | . 1 Matter Fused 2 | . 2 Heat Flow Errors 1 | . 1 Data Loss (minor) 1 | . 1 Data Loss (major) 1 | . 1 Overload Shots . | . . Overflow Damage . | . . Projectiles . | . . Explosions . | . . Melee . | . . Knockbacks . | . . Impact . | . . Kinetic . | . . Secondary . | . . Self-Inflicted Damage 156 | . 156 Shots . | . . Rammed . | . . Targets Rammed . | . . Kicked . | . . Crushed . | . . Highest Temperature 134 | . 134 Average Temperature 37 | . 37 Received Heat Transfer 348 | . 348 Siege Activations . | . . Robots Corrupted . | . . Combat Hostiles . | . . Parts Fried . | . . Impact Corruptions . | . . Robots Melted . | . . Combat Hostiles . | . . Parts Melted . | . . Heat Transferred 37 | . 37 Parts Sabotaged . | . . Parts Stolen . | . . Parts Stripped . | . . Power Chain Reactions . | . . Alert | -11 -10 ------- Run | Yrd Mat Peak Influence 205 | . 205 Initial . | . . Average 75 | . 80 Maximum Alert Level 1 | . 1 Low Security (%) 99 | 100 99 Level 1 . | . . Level 2 . | . . Level 3 . | . . Level 4 . | . . Level 5 . | . . High Security . | . . Max Security . | . . Squads Dispatched 1 | . 1 Investigation . | . . Extermination . | . . Reinforcement 1 | . 1 Assault . | . . Garrison . | . . Intercept . | . . Searches Triggered . | . . Construction Impeded . | . . Haulers Reinforced . | . . Active Scanning Responses . | . . Cargo Convoy Interrupts . | . . Stealth | -11 -10 --------- Run | Yrd Mat Distress Signals 1 | . 1 Communications Jammed . | . . Distress Signals . | . . Times Spotted 23 | . 23 Peak Tracking Total 4 | . 4 Tactical Retreats 2 | . 2 Traps | -11 -10 ------- Run | Yrd Mat Traps Triggered 2 | . 2 Indirectly . | . . Trap Hack Attempts . | . . Triggered . | . . Disarmed . | . . Reprogrammed . | . . Reused . | . . Traps Extracted . | . . Installed . | . . Triggered . | . . Machines | -11 -10 ---------- Run | Yrd Mat Machines Disabled . | . . Max in Single Turn . | . . Machines Repaired . | . . Machines Dismantled . | . . Machines Sabotaged . | . . Overloaded Fab Kills . | . . Hacking | -11 -10 --------- Run | Yrd Mat Machines Accessed 3 | . 3 Terminals 2 | . 2 Fabricators . | . . Repair Stations . | . . Recycling Units 1 | . 1 Scanalyzers . | . . Garrison Access . | . . Total Hacks 10 | . 10 Successful 5 | . 5 Failed 5 | . 5 Catastrophic . | . . Database Lockouts . | . . Manual 8 | . 8 Terminals 8 | . 8 Fabricators . | . . Repair Stations . | . . Recycling Units 2 | . 2 Scanalyzers . | . . Garrison Access . | . . Terminal Hacks 3 | . 3 Robot Analysis 1 | . 1 Prototype ID Bank 1 | . 1 Registered Components 1 | . 1 Fabricator Hacks . | . . Repair Station Hacks . | . . Recycling Unit Hacks . | . . Scanalyzer . | . . Garrison Access Hacks . | . . Unauthorized Hacks 2 | . 2 Terminals 2 | . 2 Track 1 | . 1 Botnet 1 | . 1 Fabricators . | . . Repair Stations . | . . Recycling Units . | . . Scanalyzers . | . . Garrison Access . | . . Data Cores Recovered . | . . Used . | . . Hacking Detections 3 | . 3 Full Trace Events . | . . Feedback Events . | . . Feedback Blocked . | . . Robot Schematics Acquired . | . . Robots Built . | . . Authchips . | . . Time . | . . Total Robot Build Rating . | . . Part Schematics Acquired . | . . Parts Built . | . . Authchips . | . . Time . | . . Total Part Build Rating . | . . Parts Repaired . | . . Time . | . . Parts Recycled . | . . Recycled Matter . | . . Retrieved Matter . | . . Retrieved Components . | . . Parts Scanalyzed . | . . Part Schematics Acquired . | . . Parts Damaged . | . . Bothacking | -11 -10 ------------ Run | Yrd Mat Used RIF Installer . | . . Robots Hacked . | . . Non-combat . | . . Combat . | . . Robot Hacks Applied . | . . Relay Couplers Released . | . . Fabnet Peak Effective % . | . . Robots Rewired . | . . Allies Hacked . | . . Hacks Repelled . | . . Allies | -11 -10 -------- Run | Yrd Mat Total Allies . | . . Largest Group . | . . Highest-Rated Group . | . . Highest-Rated Ally . | . . Total Orders . | . . Ally Attacks . | . . Total Damage . | . . Kills . | . . Allies Corrupted . | . . Allies Melted . | . . Intel | -11 -10 ------- Run | Yrd Mat Robot Analysis Total 1 | . 1 Derelict Logs Recovered . | . . Drone Launches . | . . Drone Recoveries . | . . Exploration | -11 -10 ------------- Run | Yrd Mat Turns Passed 1225 | 76 1149 Spaces Moved 602 | 43 559 Core 7 | 6 1 Treads 595 | 37 558 Legs . | . . Wheels . | . . Hover . | . . Flight . | . . Fastest Speed 50 | 50 50 Average Speed 158 | 148 159 Slowest Speed 160 | 160 160 Overloaded Moves . | . . Propulsion Burnouts . | . . Robots Hopped . | . . Cave-ins Triggered . | . . Exploration Rate (%) 28 | 4 52 Regions Visited 1 Branch Regions . Pre-discovered Areas . | . . Known Exits Taken . | . . Unknown Exits Taken 1 | 1 . Scrap Searched . | . . Spaces Dug . | . . Terrain Destroyed . | . . Melee . | . . Projectile . | . . AOE . | . . Terrain Rammed 26 | . 26 Walls Destroyed . | . . Machines Disabled . | . . Actions | -11 -10 --------- Run | Yrd Mat Total 757 | 52 705 Wait 24 | . 24 Move 601 | 42 559 Hop . | . . Pick Up 16 | 4 12 Fast Attach 7 | 6 1 Attach 2 | . 2 Detach . | . . Swap 4 | . 4 Drop 6 | . 6 Fire 72 | . 72 Melee . | . . Ram 25 | . 25 Kick . | . . Crush . | . . Escape Stasis . | . . Rewire . | . . Trap . | . . Miscellaneous . | . . Route ------- -11/Scrapyard -10/Materials (discovered 1 exit: *Mat) History --------- Turn | Location | Event 4 | -11/Scrapyard | Discovered new exit (range 15) 77 | -11/Scrapyard | Entered Materials 331 | -10/Materials | Build established: Mutant 960 | -10/Materials | Discovered new exit (range 16) 1122 | -10/Materials | Identified exit to Materials 1200 | -10/Materials | Released all parts (4) 1212 | -10/Materials | Core integrity fell below 50% 1212 | -10/Materials | System corruption reached 10% 1222 | -10/Materials | Core integrity fell below 20% 1226 | -10/Materials | Core destroyed Last Messages --------------- 01217_ Destabilizing: System corrupted (+1). 01218_ Slammed into Wall. 01219_ Destabilizing: System corrupted (+1). 01220_ Slammed into Wall. 01220_ Destabilizing: Core damaged (-2). 01221_ Slammed into Wall. 01221_ Destabilizing: System corrupted (+2). 01222_ Slammed into Wall. 01222_ Destabilizing: System corrupted (+2). 01223_ Slammed into Wall. 01223_ Destabilizing: Core damaged (-2). 01223_ Destabilizing: System corrupted (+2). 01224_ Slammed into Wall. 01224_ Destabilizing: Core damaged (-2). 01224_ Destabilizing: System corrupted (+2). 01225_ Slammed into Wall. 01225_ Destabilizing: Core damaged (-5). 01226_ Slammed into Wall. 01226_ Destabilizing: System corrupted (+2). 01226_ Destabilizing: Core damaged (-12). Map ----- +----------------------------------------------------+ | ?????????????????????????????????????????????????? | | ??????????????!??????????????????????????????????? | | ?????????????????????????????????????????????????? | | ?????????????????????????????????????????????????? | | ?????????????????????????????????????????????????? | | ?????????????????????????????????????????????????? | | ?????????????????????????????????????????????????? | | ?????????????????????????????????????????????????? | | ?????????????????????????????????????????????????? | | ?????????????????????????????????????????????????? | | ????????????????????????????????????????######???? | | ????????????????????????????????????????# ##### | | ????????????????????????????????????????# ""# # | | ????????????????????????????????????????# T"# < # | | ????????????????????????????????????????# ""# =# | | ????????????????????????????????????????# + [ # | | ?????????????????????###????????????????# # # | | ????????????????????? ???????????????# # # | | ??????????????????????" ???????????????# # # | | ??????????????????????" ???????????????# # # | | ??????????????????????? ???????????????###### # | | ??????????????????????? ????????????????????# # | | ??????????????????????##+##?###########??????# # | | ??????????????????????# ### """ #??????# # | | ??????????????????????# * + """ #??????# # | | ??????????????????????#==@### """ #??????# # | | ??????????????????????#[[^#?# #??????# # | | ??????????????????????#!=*#?# ""#??????# # | | ????????????????????? #?# T"#??????# # | | ???????????????????? #?# ""#??????# # | | ??????????????????? #?# #??????# # | | ??????????????????#### #?#####+############ # | | ?????????????????? # ###### # | | ?????????????????? ############## | | ?????????????????? ###########??? | | ????????????????? # #??? | | #????????????????? # u """ [ # """ """ #??? | | #????????????????" # """ [! # """ """ #??? | | #????????????????""# """ #%""" """ #??? | | #?????????????###### +%! #??? | | #???????????? #= #??? | | #??????????????????## # #??? | | #???????????????????# ###### #??? | | ##################### #????###########??? | | %* % [% [ ^ #?????????????????? | | ################## ^ #?????????????????? | | #?????????############## ##?????????????????? | | ########### """"" ###/####???????????????? | | =% + """"" ## %* #???????????????? | | ######### """"" ##! #???????????????? | +----------------------------------------------------+ Best States ------------- Heat Dissipation 25 Energy Generation 10 Energy Capacity 250 Matter Stores 300 Matter Capacity 300 Sight Range 16 Terrain Scan Density 10 Evasion (%) 40 Recoil Reduction 2 Item Schematics ----------------- None Robot Schematics ------------------ None Fabricated ------------ Nothing Alien Tech Used ----------------- None Achievements -------------- None Challenges ------------ None Game ------ Seed LargeOmegaCarapace Manual? 0 Play Time 00:13:08 Cumulative 26.6 hours Start 2024.08.23 @ 10:09:48 End 2024.08.23 @ 10:18:12 Sessions 1 Manual Loads 0 Difficulty Rogue Special Mode None Game No. 94 Rogue 94 Adventurer 0 Explorer 0 Win Type - Total 0 Types 0/0/0/0/0/0/0/0/0 Lore% 30 Gallery% 26 Achievement% 32 Wizard Run 0 Options --------- Layout 0 ASCII 0 Keyboard 0 Movement Arrows Keybinds 0 Fullscreen 1 Font 24/Terminus Map View 64x52 Zoom Use 0% Tactical HUD 1 Map Filters NONE Filters NONE Steam X RUN: 6f4d7ca0-eae8-4fd4-bf65-66b1c0aa291f